bitfinex/quotes_BTCUSD_20250812
["timestamp","ask_amount","ask_price","bid_price","bid_amount"]
[1755000281271,0.29949095,118560.0,118550.0,0.65853092]
[1755000281479,0.29949095,118560.0,118550.0,0.66044092]
[1755000281682,0.30447095,118560.0,118550.0,0.00049152]
[1755000282556,0.30447095,118560.0,118550.0,0.00149152]
[1755000282969,0.30447095,118560.0,118550.0,0.00249152]
[1755000283363,0.30447095,118560.0,118550.0,0.00449152]
[1755000283567,0.30447095,118560.0,118550.0,0.00849152]
[1755000283798,0.30547095,118560.0,118550.0,0.00649152]
[1755000284213,0.30547095,118560.0,118550.0,0.00749152]
[1755000284418,0.30447095,118560.0,118550.0,0.00149152]
[1755000285446,0.30447095,118560.0,118550.0,0.00049152]
[1755000285860,0.30547095,118560.0,118550.0,0.00049152]
[1755000286269,0.30647095,118560.0,118550.0,0.00249152]
[1755000287141,0.30547095,118560.0,118550.0,0.00049152]
[1755000287526,0.30647095,118560.0,118550.0,0.00149152]
[1755000300375,0.17567095,118560.0,118550.0,0.1701967]
[1755000300553,0.30635095,118560.0,118550.0,0.1701967]
[1755000301442,0.30635095,118560.0,118550.0,0.00149152]
[1755000301647,0.79829047,118560.0,118550.0,0.00149152]
[1755000301944,0.32379997,118560.0,118550.0,0.00149152]
[1755000302147,0.81573949,118560.0,118550.0,0.00149152]
[1755000302715,0.84107149,118560.0,118550.0,0.00149152]
[1755000303352,0.34913197,118560.0,118550.0,0.00149152]
[1755000303561,0.84107149,118560.0,118550.0,0.00149152]
[1755000305187,0.34913197,118560.0,118550.0,0.00149152]
[1755000305390,0.84107149,118560.0,118550.0,0.00149152]
[1755000308700,0.34913197,118560.0,118550.0,0.00149152]
[1755000308918,0.84107149,118560.0,118550.0,0.00149152]
[1755000316651,0.34913197,118560.0,118550.0,0.00149152]
[1755000316982,0.84107149,118560.0,118550.0,0.00149152]
[1755000318739,0.84007149,118560.0,118550.0,0.00049152]
[1755000318997,0.83907149,118560.0,118550.0,0.00049152]
[1755000319209,0.84107149,118560.0,118550.0,0.00049152]
[1755000319640,0.84507149,118560.0,118550.0,0.00149152]
[1755000320061,1.33701101,118560.0,118550.0,1e-08]
[1755000320269,1.35519785,118560.0,118550.0,1e-08]
[1755000329341,1.36309616,118560.0,118550.0,1e-08]
[1755000329552,1.36902001,118560.0,118550.0,1e-08]
[1755000331699,1.36902342,118560.0,118550.0,1e-08]
[1755000333259,1.39181007,118560.0,118550.0,1e-08]
[1755000334685,1.39181031,118560.0,118550.0,1e-08]
[1755000336175,1.46746048,118560.0,118550.0,1e-08]
[1755000336386,1.49780015,118560.0,118550.0,1e-08]
[1755000336801,1.49580015,118560.0,118550.0,1e-08]
[1755000337228,1.49980015,118560.0,118550.0,1e-08]
[1755000337429,1.00786063,118560.0,118550.0,1e-08]
[1755000337637,1.00786063,118560.0,118500.0,0.00159]
[1755000337638,0.16876212,118510.0,118500.0,0.00159]
[1755000337842,0.29944212,118510.0,118500.0,0.00354904]
[1755000339563,0.30144212,118510.0,118500.0,0.00454904]
[1755000340609,0.30144212,118510.0,118500.0,0.00654904]
[1755000340610,0.30244212,118510.0,118500.0,0.00654904]
[1755000343979,0.30244212,118510.0,118500.0,0.00535904]
[1755000344437,0.30244212,118510.0,118500.0,0.17413541]
[1755000344634,0.30244212,118510.0,118500.0,0.00535904]
[1755000351776,0.30541212,118510.0,118500.0,0.00535904]
[1755000352709,0.67479565,118510.0,118500.0,0.00535904]
[1755000353522,0.67682565,118510.0,118500.0,0.00535904]
[1755000353952,0.30744212,118510.0,118500.0,0.00535904]
[1755000354289,0.30541212,118510.0,118500.0,0.37474257]
[1755000354431,0.30244212,118510.0,118500.0,0.37474257]
[1755000354633,0.30244212,118510.0,118500.0,0.37593257]
[1755000354858,0.30244212,118510.0,118500.0,0.37474257]
[1755000360203,0.17176212,118510.0,118500.0,0.67419894]
[1755000360409,0.003,118510.0,118500.0,1.04477247]
[1755000362774,0.17176212,118510.0,118500.0,0.79835522]
[1755000363588,0.003,118510.0,118500.0,0.79835522]
[1755000363971,0.17176212,118510.0,118500.0,0.79835522]
[1755000364580,0.003,118510.0,118500.0,0.79835522]
[1755000364939,0.003,118510.0,118500.0,0.30600541]
[1755000365256,0.003,118510.0,118500.0,0.79835522]
[1755000366610,0.003,118510.0,118500.0,0.79716522]
[1755000366826,0.17176212,118510.0,118500.0,0.79716522]
[1755000367454,0.17176212,118510.0,118500.0,0.30481541]
[1755000367708,0.17176212,118510.0,118500.0,0.79716522]
[1755000369284,0.17690212,118510.0,118500.0,0.00344904]
[1755000369516,0.17690212,118510.0,118500.0,0.13412904]
[1755000369746,0.17690212,118510.0,118500.0,0.00344904]
[1755000378389,0.18687212,118510.0,118500.0,0.00344904]
[1755000380238,0.69667095,118510.0,118500.0,0.00344904]
[1755000380669,0.72201495,118510.0,118500.0,0.00344904]
[1755000381648,0.72197495,118510.0,118500.0,0.00348904]
[1755000381898,0.72197495,118510.0,118500.0,1e-08]
[1755000382135,0.74492495,118510.0,118500.0,1e-08]
[1755000382367,0.76313779,118510.0,118500.0,1e-08]
[1755000383082,0.18623963,118490.0,118480.0,0.0004]
[1755000383316,0.83203959,118490.0,118480.0,0.0004827]
[1755000383733,0.83852959,118490.0,118480.0,0.0004827]
[1755000383979,0.34617978,118490.0,118480.0,0.0004827]
[1755000384247,0.83852959,118490.0,118480.0,0.0004827]
[1755000384462,0.83952959,118490.0,118480.0,0.0004827]
[1755000384943,0.84052959,118490.0,118480.0,0.0014827]
[1755000387780,0.8509863,118490.0,118480.0,0.0014827]
[1755000388787,0.16884761,118450.0,118440.0,0.48313312]
[1755000388985,0.16884761,118450.0,118440.0,0.65395231]
[1755000389393,0.16884761,118450.0,118440.0,0.65395411]
[1755000389976,0.16884761,118450.0,118440.0,0.66425653]
[1755000390198,0.16984761,118450.0,118440.0,0.67669962]
[1755000390864,0.16984761,118450.0,118440.0,0.68591631]
[1755000391088,0.17184761,118450.0,118440.0,0.68791631]
[1755000391929,0.003,118450.0,118440.0,0.68910631]
[1755000392366,0.17184761,118450.0,118440.0,0.68910631]
[1755000393932,0.17184761,118450.0,118440.0,0.68791631]
[1755000394644,0.17184761,118450.0,118440.0,0.67947322]
[1755000395716,0.17184761,118450.0,118440.0,0.51061135]
[1755000395942,0.17184761,118450.0,118440.0,0.67947322]
[1755000397107,0.17184761,118450.0,118440.0,0.68066322]
[1755000399208,0.17184761,118450.0,118440.0,0.67947322]
[1755000399750,0.003,118450.0,118440.0,0.67947322]
[1755000400658,0.003,118450.0,118440.0,0.68066322]
[1755000401372,0.003,118450.0,118440.0,1.17182303]
[1755000401574,0.003,118450.0,118440.0,0.68066322]
[1755000405104,0.003,118450.0,118440.0,1.17301303]
[1755000405675,0.003,118450.0,118440.0,0.68066322]
[1755000406125,0.003,118450.0,118440.0,0.18831341]
[1755000406330,0.17486761,118450.0,118440.0,0.67947322]
[1755000406539,0.17696761,118450.0,118440.0,0.67947322]
[1755000408719,0.17696761,118450.0,118440.0,0.18712341]
[1755000408947,0.17696761,118450.0,118440.0,0.67947322]
[1755000414189,0.00812,118450.0,118440.0,0.67947322]
[1755000414993,0.00812,118450.0,118440.0,0.18712341]
[1755000415307,0.17696761,118450.0,118440.0,0.67947322]
[1755000415709,0.17696761,118450.0,118440.0,0.18712341]
[1755000415912,0.17696761,118450.0,118440.0,0.67947322]
[1755000416115,0.00812,118450.0,118440.0,0.67947322]
[1755000417190,0.00602,118450.0,118440.0,0.67947322]
[1755000417390,0.003,118450.0,118440.0,0.67947322]
[1755000417601,0.003,118450.0,118440.0,0.18712341]
[1755000417810,0.003,118450.0,118440.0,0.67947322]
[1755000419044,0.00602,118450.0,118440.0,0.67947322]
[1755000421390,0.00602,118450.0,118440.0,0.18712341]
[1755000421734,0.00602,118450.0,118440.0,0.67947322]
[1755000424191,0.00602,118450.0,118440.0,0.18712341]
[1755000424397,0.00602,118450.0,118440.0,0.67947322]
[1755000425585,0.00602,118450.0,118440.0,0.18712341]
[1755000425914,0.00602,118450.0,118440.0,0.67947322]
[1755000426871,0.003,118450.0,118440.0,0.67947322]
[1755000429213,0.003,118450.0,118440.0,0.67756322]
[1755000429214,0.00513,118450.0,118440.0,0.67756322]
[1755000429412,0.00827,118450.0,118440.0,0.18521341]
[1755000429639,0.00827,118450.0,118440.0,0.67756322]
[1755000430686,0.00827,118450.0,118440.0,0.92451003]
[1755000431301,0.17711761,118450.0,118440.0,0.92451003]
[1755000431506,0.17711761,118450.0,118440.0,0.18521341]
[1755000431726,0.17711761,118450.0,118440.0,0.92451003]
[1755000432156,0.00827,118450.0,118440.0,0.92451003]
[1755000432618,0.17711761,118450.0,118440.0,0.92451003]
[1755000432794,0.17711761,118450.0,118440.0,0.67808573]
[1755000432997,0.17711761,118450.0,118440.0,0.18521341]
[1755000433237,0.17711761,118450.0,118440.0,0.67808573]
[1755000434674,0.17711761,118450.0,118440.0,0.80860573]
[1755000436045,0.00827,118450.0,118440.0,0.81051573]
[1755000436290,0.17711761,118450.0,118440.0,0.31764341]
[1755000436497,0.17711761,118450.0,118440.0,0.81051573]
[1755000436669,0.17711761,118450.0,118440.0,0.80860573]
[1755000437234,0.17711761,118450.0,118440.0,0.31573341]
[1755000437628,0.17711761,118450.0,118440.0,0.80860573]
[1755000439157,0.17711761,118450.0,118440.0,0.31573341]
[1755000439381,0.17711761,118450.0,118440.0,0.80860573]
[1755000441667,0.17711761,118450.0,118440.0,0.63974386]
[1755000442042,0.17711761,118450.0,118440.0,0.80860573]
[1755000444314,0.17184761,118450.0,118440.0,0.81051573]
[1755000444750,0.17711761,118450.0,118440.0,0.81051573]
[1755000444984,0.17711761,118450.0,118440.0,0.80860573]
[1755000446117,0.17711761,118450.0,118440.0,0.31764341]
[1755000446692,0.17711761,118450.0,118440.0,0.81051573]
[1755000448899,0.17498761,118450.0,118440.0,0.81051573]
[1755000449058,0.00614,118450.0,118440.0,0.31764341]
[1755000449271,0.003,118450.0,118440.0,0.81051573]
[1755000450629,0.30755761,118450.0,118440.0,0.00604912]
[1755000450839,0.30755761,118450.0,118440.0,0.49892144]
[1755000451245,0.30755761,118450.0,118440.0,0.62936144]
[1755000451586,0.17711761,118450.0,118440.0,0.64933192]
[1755000451977,0.17711761,118450.0,118440.0,0.81819379]
[1755000453005,0.17184761,118450.0,118440.0,0.81819379]
[1755000454778,0.17184761,118450.0,118440.0,1.06456565]
[1755000456713,0.17184761,118450.0,118440.0,1.43418774]
[1755000456714,0.003,118450.0,118440.0,1.43418774]
[1755000456937,0.003,118450.0,118440.0,1.43537774]
[1755000458311,0.003,118450.0,118440.0,1.46072474]
[1755000458724,0.003,118450.0,118440.0,1.33715641]
[1755000462183,0.003,118450.0,118440.0,0.35062847]
[1755000462394,0.003,118450.0,118440.0,1.33592641]
[1755000463427,0.00836,118450.0,118440.0,0.84327744]
[1755000464347,0.17720761,118450.0,118440.0,0.84327744]
[1755000464535,0.17720761,118450.0,118440.0,0.68562044]
[1755000464755,0.17720761,118450.0,118440.0,0.1544696]
[1755000464973,0.17720761,118450.0,118440.0,0.0241096]
[1755000466299,0.17720761,118450.0,118440.0,0.00604912]
[1755000470068,0.30756761,118450.0,118440.0,0.00604912]
[1755000473512,0.30656761,118450.0,118440.0,0.00204912]
[1755000473675,0.32401663,118450.0,118440.0,0.00204912]
[1755000473880,0.32301663,118450.0,118440.0,0.00204912]
[1755000474299,0.32401663,118450.0,118440.0,0.00304912]
[1755000478596,0.17620761,118450.0,118440.0,0.00304912]
[1755000478813,0.30652761,118450.0,118440.0,0.49569809]
[1755000479017,0.30652761,118450.0,118440.0,0.00304912]
[1755000487666,0.30652761,118450.0,118440.0,0.17382099]
[1755000487892,0.30652761,118450.0,118440.0,0.66646996]
[1755000488107,0.30652761,118450.0,118440.0,0.17382099]
[1755000488558,0.30652761,118450.0,118440.0,0.17191099]
[1755000488789,0.30652761,118450.0,118440.0,0.00304912]
[1755000490990,0.30652761,118450.0,118440.0,0.17191099]
[1755000491624,0.30652761,118450.0,118440.0,0.17382099]
[1755000491837,0.30652761,118450.0,118440.0,0.17191099]
[1755000493792,0.002,118450.0,118440.0,0.66646996]
[1755000494027,0.002,118450.0,118440.0,0.79674996]
[1755000495140,0.002,118450.0,118440.0,0.30410099]
[1755000495360,0.002,118450.0,118440.0,0.79674996]
[1755000502402,0.002,118450.0,118440.0,0.30410099]
[1755000502698,0.002,118450.0,118440.0,0.79674996]
[1755000503132,0.00496,118450.0,118440.0,0.79674996]
[1755000503316,0.00496,118450.0,118440.0,0.30410099]
[1755000503505,0.00496,118450.0,118440.0,0.79674996]
[1755000503949,0.002,118450.0,118440.0,1.28939893]
[1755000504128,0.002,118450.0,118440.0,1.29058893]
[1755000505015,0.001,118450.0,118440.0,1.28758893]
[1755000505259,0.00296,118470.0,118460.0,0.16883336]
[1755000505429,0.00509,118470.0,118460.0,0.66148233]
[1755000505632,0.00509,118470.0,118460.0,0.16883336]
[1755000506963,0.00509,118470.0,118460.0,0.16983336]
[1755000507918,0.00509,118470.0,118460.0,0.79459233]
[1755000508126,0.002,118470.0,118460.0,0.79559233]
[1755000508355,0.002,118470.0,118460.0,0.79678233]
[1755000509289,0.17173637,118500.0,118490.0,0.16879061]
[1755000509503,0.17386637,118500.0,118490.0,0.16879061]
[1755000510824,0.17486637,118500.0,118490.0,0.16879061]
[1755000510977,0.66751534,118500.0,118490.0,0.16879061]
[1755000511389,0.66951534,118500.0,118490.0,0.16979061]
[1755000511589,0.66951534,118500.0,118490.0,0.00104]
[1755000511824,0.71004436,118500.0,118490.0,0.00104]
[1755000512693,0.21739539,118500.0,118490.0,0.00104]
[1755000512905,0.71004436,118500.0,118490.0,0.00104]
[1755000514721,1.18139236,118500.0,118490.0,0.00104]
[1755000516749,1.18039236,118500.0,118490.0,0.00104]
[1755000516946,1.18339236,118500.0,118490.0,0.00204]
[1755000517772,1.18139236,118500.0,118490.0,0.00104]
[1755000518195,1.18539236,118500.0,118490.0,0.00204]
[1755000520507,0.73939236,118500.0,118490.0,0.00204]
[1755000522232,0.24674339,118500.0,118490.0,0.00204]
[1755000522442,0.73939236,118500.0,118490.0,0.00204]
[1755000528658,0.79005236,118500.0,118490.0,0.00204]
[1755000529857,0.76697236,118500.0,118490.0,0.00204]
[1755000533732,0.16884761,118450.0,118440.0,0.17849496]
[1755000533953,0.29896761,118450.0,118440.0,0.18045408]
[1755000534536,0.13012,118450.0,118440.0,0.18045408]
[1755000534961,0.13112,118450.0,118440.0,0.18345408]
[1755000535163,0.13312,118450.0,118440.0,0.18745408]
[1755000535619,0.30196761,118450.0,118440.0,0.18745408]
[1755000537117,0.13312,118450.0,118440.0,0.18745408]
[1755000538204,0.003,118450.0,118440.0,0.18745408]
[1755000539957,0.17184761,118450.0,118440.0,0.18745408]
[1755000540590,0.17184761,118450.0,118440.0,0.18626408]
[1755000541675,0.17184761,118450.0,118440.0,0.01740221]
[1755000542070,0.17184761,118450.0,118440.0,0.18626408]
[1755000548987,0.17184761,118450.0,118440.0,0.00895912]
[1755000549191,0.17715761,118450.0,118440.0,0.00895912]
[1755000549865,0.66980658,118450.0,118440.0,0.00704912]
[1755000550084,0.6872556,118450.0,118440.0,0.00704912]
[1755000550329,0.19460663,118450.0,118440.0,0.00704912]
[1755000550546,0.6872556,118450.0,118440.0,0.00704912]
[1755000551843,0.19460663,118450.0,118440.0,0.00704912]
[1755000557718,0.6872556,118450.0,118440.0,0.00704912]
[1755000558150,0.19460663,118450.0,118440.0,0.00704912]
[1755000562180,0.6872556,118450.0,118440.0,0.00704912]
[1755000562658,0.19460663,118450.0,118440.0,0.00704912]
[1755000566226,0.19460663,118450.0,118440.0,0.00614912]
[1755000569966,0.133,118450.0,118440.0,0.66956996]
[1755000570212,0.003,118450.0,118440.0,0.67075996]
[1755000570434,0.30184761,118450.0,118440.0,0.17811099]
[1755000570664,0.30184761,118450.0,118440.0,0.66956996]
[1755000574900,0.133,118450.0,118440.0,0.66956996]
[1755000575339,0.30184761,118450.0,118440.0,0.66956996]
[1755000575982,0.30184761,118450.0,118440.0,0.17692099]
[1755000576208,0.30499761,118450.0,118440.0,0.17692099]
[1755000579460,0.30700761,118450.0,118440.0,0.17692099]
[1755000583407,0.30700761,118450.0,118440.0,0.66956996]
[1755000583698,0.30700761,118450.0,118440.0,0.17692099]
[1755000583898,0.30700761,118450.0,118440.0,0.66956996]
[1755000585627,0.30499761,118450.0,118440.0,0.66956996]
[1755000585838,0.133,118450.0,118440.0,0.66956996]
[1755000586701,0.133,118450.0,118440.0,0.91619491]
[1755000588017,0.003,118450.0,118440.0,0.91619491]
[1755000588243,0.003,118450.0,118440.0,0.91738491]
[1755000588715,0.003,118450.0,118440.0,0.67090677]
[1755000589364,0.003,118450.0,118440.0,0.66971677]
[1755000590002,0.003,118450.0,118440.0,0.17692099]
[1755000590227,0.003,118450.0,118440.0,0.66971677]
[1755000594855,0.003,118450.0,118440.0,1.16251255]
[1755000595154,0.003,118450.0,118440.0,1.16370255]
[1755000595283,0.003,118450.0,118440.0,0.69625577]
[1755000595516,0.003,118450.0,118440.0,0.20345999]
[1755000595734,0.003,118450.0,118440.0,0.69625577]
[1755000596587,0.003,118450.0,118440.0,0.69506577]
[1755000596972,0.003,118450.0,118440.0,1.18905155]
[1755000597224,0.003,118450.0,118440.0,0.69625577]
[1755000597820,0.003,118450.0,118440.0,1.18905155]
[1755000600414,0.003,118450.0,118440.0,0.69625577]
[1755000601540,0.003,118450.0,118440.0,0.69506577]
[1755000602663,0.003,118450.0,118440.0,0.20226999]
[1755000602884,0.003,118450.0,118440.0,0.69506577]
[1755000604856,0.003,118450.0,118440.0,0.20226999]
[1755000605071,0.003,118450.0,118440.0,0.69506577]
[1755000605736,0.008,118450.0,118440.0,0.69506577]
[1755000606797,0.17684761,118450.0,118440.0,0.20035999]
[1755000607011,0.17684761,118450.0,118440.0,0.33019999]
[1755000609113,0.008,118450.0,118440.0,0.33019999]
[1755000609319,0.17684761,118450.0,118440.0,0.33019999]
[1755000610324,0.008,118450.0,118440.0,0.33019999]
[1755000612076,0.17684761,118450.0,118440.0,0.33019999]
[1755000612470,0.008,118450.0,118440.0,0.33019999]
[1755000613910,0.008,118450.0,118440.0,0.82299577]
[1755000617530,0.17684761,118450.0,118440.0,0.33019999]
[1755000617687,0.17684761,118450.0,118440.0,0.30485099]
[1755000620177,0.17679695,118450.0,118440.0,0.30485099]
[1755000625220,0.17679695,118450.0,118440.0,0.13598912]
[1755000626913,0.17679695,118450.0,118440.0,0.30485099]
[1755000627119,0.17679695,118450.0,118440.0,0.17501099]
[1755000627958,0.30655695,118450.0,118440.0,0.17501099]
[1755000629203,0.17679695,118450.0,118440.0,0.17501099]
[1755000629836,0.17679695,118450.0,118440.0,0.00614912]
[1755000630258,0.17679695,118450.0,118440.0,0.17501099]
[1755000631520,0.17679695,118450.0,118440.0,0.17505099]
[1755000635141,0.17679695,118450.0,118440.0,0.54477106]
[1755000635743,0.17679695,118450.0,118440.0,0.17505099]
[1755000635940,0.54651702,118450.0,118440.0,0.00618912]
[1755000636169,0.54651702,118450.0,118440.0,0.13590912]
[1755000636520,0.17679695,118450.0,118440.0,0.13590912]
[1755000640249,0.17679695,118450.0,118440.0,0.00618912]
[1755000641228,0.54651702,118450.0,118440.0,0.00618912]
[1755000642010,0.56396604,118450.0,118440.0,0.00618912]
[1755000648690,0.58932204,118450.0,118440.0,0.00618912]
[1755000652775,0.71270836,118450.0,118440.0,0.00618912]
[1755000654261,0.72142336,118450.0,118440.0,0.00618912]
[1755000660895,0.22831697,118450.0,118440.0,0.00618912]
[1755000661116,0.72142336,118450.0,118440.0,0.00618912]
[1755000662041,0.72047402,118450.0,118440.0,0.00404]
[1755000662287,0.71847402,118450.0,118440.0,4e-05]
[1755000662479,0.71947402,118450.0,118440.0,0.00204]
[1755000662660,0.22636763,118450.0,118440.0,0.00204]
[1755000662889,0.71947402,118450.0,118440.0,0.00204]
[1755000663509,0.72047402,118450.0,118440.0,0.00204]
[1755000664878,0.85011402,118450.0,118440.0,0.00204]
[1755000670266,0.35700763,118450.0,118440.0,0.00204]
[1755000670507,0.85011402,118450.0,118440.0,0.00204]
[1755000674859,1.09681919,118450.0,118440.0,0.00204]
[1755000675502,0.35700763,118450.0,118440.0,0.00204]
[1755000675727,1.09681919,118450.0,118440.0,0.00204]
[1755000684363,1.09581919,118450.0,118440.0,4e-05]
[1755000684572,0.35592763,118450.0,118440.0,4e-05]
[1755000684779,1.09773919,118450.0,118440.0,0.00104]
[1755000685206,1.09673919,118450.0,118440.0,0.00104]
[1755000685621,1.09873919,118450.0,118440.0,0.00204]
[1755000687424,0.35892763,118450.0,118440.0,0.00204]
[1755000687658,1.09873919,118450.0,118440.0,0.00204]
[1755000688542,1.14944919,118450.0,118440.0,0.00204]
[1755000691013,0.40963763,118450.0,118440.0,0.00204]
[1755000691183,1.14944919,118450.0,118440.0,0.00204]
[1755000709212,1.16767151,118450.0,118440.0,0.00204]
[1755000709682,0.42785995,118450.0,118440.0,0.00204]
[1755000709918,1.16767151,118450.0,118440.0,0.00204]
[1755000710618,0.42785995,118450.0,118440.0,0.00204]
[1755000710842,1.16767151,118450.0,118440.0,0.00204]
[1755000718631,0.42785995,118450.0,118440.0,0.00204]
[1755000718892,1.16767151,118450.0,118440.0,0.00204]
[1755000721238,0.42785995,118450.0,118440.0,0.00204]
[1755000721446,0.74693573,118450.0,118440.0,0.00395]
[1755000723418,0.72871341,118450.0,118440.0,0.00395]
[1755000725346,0.22936763,118450.0,118440.0,0.00395]
[1755000725577,0.72367341,118450.0,118440.0,0.00395]
[1755000725977,0.35376763,118450.0,118440.0,0.00395]
[1755000726208,0.72367341,118450.0,118440.0,0.00395]
[1755000727473,0.72663341,118450.0,118440.0,0.00395]
[1755000729538,0.72863341,118450.0,118440.0,0.00395]
[1755000730411,0.35872763,118450.0,118440.0,0.00395]
[1755000730615,0.72863341,118450.0,118440.0,0.00395]
[1755000730940,0.35872763,118450.0,118440.0,0.00395]
[1755000731148,0.72863341,118450.0,118440.0,0.00395]
[1755000732328,0.35872763,118450.0,118440.0,0.00395]
[1755000732562,0.72863341,118450.0,118440.0,0.00395]
[1755000734370,0.72863341,118450.0,118440.0,0.00204]
[1755000738058,0.35372763,118450.0,118440.0,0.37504578]
[1755000738508,0.35372763,118450.0,118440.0,0.00514]
[1755000739014,0.22236763,118450.0,118440.0,0.00414]
[1755000739220,0.35072763,118450.0,118440.0,0.00414]
[1755000739456,0.35172763,118450.0,118440.0,0.00514]
[1755000739905,0.35172763,118450.0,118440.0,0.00395]
[1755000740319,0.72163341,118450.0,118440.0,0.00395]
[1755000740523,0.72659341,118450.0,118440.0,0.00204]
[1755000745270,0.35668763,118450.0,118440.0,0.00395]
[1755000745488,0.72459341,118450.0,118440.0,0.00395]
[1755000746990,0.35468763,118450.0,118440.0,0.00395]
[1755000747195,0.72459341,118450.0,118440.0,0.00395]
[1755000748118,0.35172763,118450.0,118440.0,0.00395]
[1755000748307,0.35172763,118450.0,118440.0,0.37385578]
[1755000748476,0.35172763,118450.0,118440.0,0.91262343]
[1755000748477,0.036071,118450.0,118440.0,0.91262343]
[1755000748705,0.140035,118450.0,118440.0,0.91381343]
[1755000749161,0.010715,118450.0,118440.0,0.91381343]
[1755000749521,0.010715,118450.0,118440.0,0.93916443]
[1755000750749,0.010715,118450.0,118440.0,0.69221682]
[1755000752355,0.010715,118450.0,118440.0,1.31436077]
[1755000752760,0.009715,118450.0,118440.0,1.33788077]
[1755000753438,0.008715,118450.0,118440.0,1.33688077]
[1755000754693,0.009715,118450.0,118440.0,0.84901682]
[1755000754918,0.010715,118450.0,118440.0,0.84901682]
[1755000756868,0.010715,118450.0,118440.0,0.87412571]
[1755000757693,0.010715,118450.0,118440.0,0.84877471]
[1755000758837,0.010715,118450.0,118440.0,0.82425471]
[1755000761528,0.010675,118450.0,118440.0,0.82425471]
[1755000762150,0.010675,118450.0,118440.0,1.31711866]
[1755000763242,0.010675,118450.0,118440.0,1.34246766]
[1755000766285,0.010675,118450.0,118440.0,1.34246766]
[1755000768840,0.010675,118450.0,118440.0,1.34127766]
[1755000771436,0.010675,118450.0,118440.0,0.84841371]
[1755000780951,0.010675,118450.0,118440.0,0.35554976]
[1755000781241,0.010675,118450.0,118440.0,0.84841371]
[1755000784693,0.010675,118450.0,118440.0,1.09477166]
[1755000786333,0.010675,118450.0,118440.0,0.35554976]
[1755000786705,0.010675,118450.0,118440.0,1.09477166]
[1755000787290,0.010675,118450.0,118440.0,1.09461166]
[1755000788989,0.010675,118450.0,118440.0,0.35538976]
[1755000789197,0.010675,118450.0,118440.0,1.09461166]
[1755000791250,0.010675,118450.0,118440.0,0.35538976]
[1755000791574,0.010675,118450.0,118440.0,1.09461166]
[1755000791976,0.013635,118450.0,118440.0,0.22626976]
[1755000792187,0.013635,118450.0,118440.0,1.09461166]
[1755000792188,0.015745,118450.0,118440.0,1.09461166]
[1755000795599,0.38535595,118450.0,118440.0,0.30298187]
[1755000795847,0.38535595,118450.0,118440.0,0.17390187]
[1755000796396,0.015745,118450.0,118440.0,0.17390187]
[1755000796608,0.015745,118450.0,118440.0,0.54351282]
[1755000797268,0.55420356,118450.0,118440.0,0.17390187]
[1755000797681,0.015745,118450.0,118440.0,0.54351282]
[1755000797884,0.015745,118450.0,118440.0,0.67259282]
[1755000798977,0.015745,118450.0,118440.0,0.30489187]
[1755000799186,0.015745,118450.0,118440.0,0.67450282]
[1755000799401,0.015745,118450.0,118440.0,1.04411377]
[1755000800850,0.015745,118450.0,118440.0,0.79777528]
[1755000802951,0.015745,118450.0,118440.0,0.30489187]
[1755000803125,0.015745,118450.0,118440.0,0.79586528]
[1755000804146,0.015745,118450.0,118440.0,0.30298187]
[1755000807570,0.18459261,118450.0,118440.0,0.30298187]
[1755000807982,0.015745,118450.0,118440.0,0.30298187]
[1755000815981,0.015745,118450.0,118440.0,0.79586528]
[1755000816392,0.015745,118450.0,118440.0,0.79777528]
[1755000817456,0.013635,118450.0,118440.0,0.79777528]
[1755000818079,0.013635,118450.0,118440.0,0.82312628]
[1755000818491,0.015625,118450.0,118440.0,0.82312628]
[1755000820504,0.015625,118450.0,118440.0,0.32833287]
[1755000820710,0.015625,118450.0,118440.0,0.69803721]
[1755000821539,0.015585,118450.0,118440.0,0.69803721]
[1755000823479,0.18443261,118450.0,118440.0,0.69803721]
[1755000823681,0.18443261,118450.0,118440.0,0.67268621]
[1755000831775,0.015585,118450.0,118440.0,0.30489187]
[1755000831978,0.015585,118450.0,118440.0,0.67459621]
[1755000832283,0.18443261,118450.0,118440.0,0.30298187]
[1755000832708,0.18443261,118450.0,118440.0,0.67268621]
[1755000834851,0.18443261,118450.0,118440.0,0.30298187]
[1755000835066,0.18443261,118450.0,118440.0,0.67268621]
[1755000835505,0.18443261,118450.0,118440.0,0.67459621]
[1755000837408,0.18443261,118450.0,118440.0,0.30489187]
[1755000837617,0.18443261,118450.0,118440.0,0.67459621]
[1755000837825,0.015585,118450.0,118440.0,0.67459621]
[1755000838590,0.013595,118450.0,118440.0,0.67459621]
[1755000840848,0.010635,118450.0,118440.0,0.67459621]
[1755000841674,0.013705,118450.0,118440.0,0.30489187]
[1755000841830,0.013705,118450.0,118440.0,0.67459621]
[1755000842044,0.18255261,118450.0,118440.0,0.30489187]
[1755000842244,0.31350261,118450.0,118440.0,0.67268621]
[1755000842448,0.31350261,118450.0,118440.0,0.54360621]
[1755000844323,0.31350261,118450.0,118440.0,0.67256621]
[1755000846728,0.31350261,118450.0,118440.0,0.30286187]
[1755000847074,0.31350261,118450.0,118440.0,0.67256621]
[1755000848551,0.31350261,118450.0,118440.0,0.30286187]
[1755000848756,0.31350261,118450.0,118440.0,0.67256621]
[1755000849158,0.31350261,118450.0,118440.0,0.30286187]
[1755000849361,0.31350261,118450.0,118440.0,0.67256621]
[1755000850115,0.68320695,118450.0,118440.0,0.00504]
[1755000850595,0.31350261,118450.0,118440.0,0.00504]
[1755000850802,0.68320695,118450.0,118440.0,0.00504]
[1755000851439,0.16886187,118440.0,118430.0,0.57742631]
[1755000851650,0.16886187,118440.0,118430.0,0.57757377]
[1755000851651,0.17404187,118440.0,118430.0,0.57757377]
[1755000852754,0.17504187,118440.0,118430.0,0.58057377]
[1755000852965,0.17704187,118440.0,118430.0,0.58357377]
[1755000858220,0.17186187,118440.0,118430.0,0.58548377]
[1755000858592,0.17704187,118440.0,118430.0,0.58548377]
[1755000860427,0.17704187,118440.0,118430.0,0.58357377]
[1755000866947,0.17704187,118440.0,118430.0,0.21386943]
[1755000867184,0.17704187,118440.0,118430.0,0.58357377]
[1755000871656,0.17704187,118440.0,118430.0,0.71245377]
[1755000871972,0.17704187,118440.0,118430.0,0.71436377]
[1755000873091,0.17704187,118440.0,118430.0,0.34465943]
[1755000873556,0.17704187,118440.0,118430.0,0.71436377]
[1755000874646,0.17704187,118440.0,118430.0,0.34465943]
[1755000874856,0.17704187,118440.0,118430.0,0.71436377]
[1755000878640,0.17704187,118440.0,118430.0,0.34465943]
[1755000878844,0.17704187,118440.0,118430.0,0.71436377]
[1755000881480,0.00818,118440.0,118430.0,0.71436377]